fUSD/lending_fUSD_20241031
["ID","MTS","AMOUNT","RATE_DAILY","PERIOD"]
[341087168,1730361065837,-500.0,0.00050684,120]
[341087169,1730361065846,-500.0003,0.00050684,120]
[341087170,1730361065856,-500.0,0.00050684,120]
[341087171,1730361065865,-500.0,0.00050684,120]
[341087172,1730361065875,-500.0,0.00050684,120]
[341087173,1730361065886,-501.75982221,0.00050684,120]
[341087174,1730361065895,-500.0,0.00050684,120]
[341087175,1730361065905,-500.0,0.00050684,120]
[341087176,1730361065915,-530.1315181,0.00050684,120]
[341087177,1730361065924,-500.0,0.00050684,120]
[341087178,1730361065933,-500.0,0.00050684,120]
[341087179,1730361065943,-500.0,0.00050684,120]
[341087180,1730361065952,-500.0,0.00050684,120]
[341087181,1730361065960,-517.90238361,0.00050684,120]
[341087182,1730361065970,-524.01541718,0.00050684,120]
[341087183,1730361065979,-503.50394285,0.00050684,120]
[341087184,1730361065990,-500.0,0.00050684,120]
[341087185,1730361065999,-527.90010359,0.00050684,90]
[341087186,1730361066010,-595.65890189,0.00050684,120]
[341087187,1730361066020,-500.0,0.00050684,120]
[341087188,1730361066029,-506.27331911,0.00050684,120]
[341087189,1730361066039,-557.05290745,0.00050684,120]
[341087190,1730361066049,-645.58727284,0.00050684,120]
[341087191,1730361066059,-500.0,0.00050684,120]
[341087192,1730361066068,-500.0,0.00050684,120]
[341087193,1730361066077,-500.0,0.00050684,120]
[341087194,1730361066089,-500.0,0.00050684,120]
[341087195,1730361066103,-500.0,0.00050684,120]
[341087196,1730361066113,-364.42043988,0.00050684,120]
[341087197,1730361066123,-593.12122308,0.00050684,120]
[341087198,1730361066132,-530.45151471,0.00050684,120]
[341087199,1730361066143,-512.90256798,0.00050684,120]
[341087200,1730361066153,-500.0,0.00050684,120]
[341087201,1730361066163,-517.41461055,0.00050684,120]
[341087202,1730361066173,-569.26175331,0.00050684,60]
[341087203,1730361066183,-583.70894996,0.00050684,120]
[341087204,1730361066192,-619.58969133,0.00050684,120]
[341087205,1730361066201,-500.0,0.00050684,120]
[341087206,1730361066211,-500.0,0.00050684,120]
[341087207,1730361066221,-613.35240618,0.00050684,120]
[341087208,1730361066231,-561.7820341,0.00050684,120]
[341087209,1730361066240,-591.3955037,0.00050684,120]
[341087210,1730361066249,-500.0,0.00050684,120]
[341087211,1730361066259,-500.0,0.00050684,120]
[341087212,1730361066269,-277.38418116,0.00050684,120]
[341087213,1730361066278,-513.10231123,0.00050684,120]
[341087214,1730361066287,-519.40479459,0.00050684,7]
[341087215,1730361066297,-534.76366118,0.00050684,120]
[341087216,1730361066306,-500.0,0.00050684,120]
[341087217,1730361066316,-520.07269083,0.00050684,120]
[341087218,1730361066325,-500.0,0.00050684,120]
[341087219,1730361066335,-500.0,0.00050684,120]
[341087220,1730361066344,-588.44393871,0.00050684,120]
[341087221,1730361066354,-500.0,0.00050684,120]
[341087222,1730361066363,-500.0,0.00050684,30]
[341087223,1730361066373,-187.81628288,0.00050684,120]
[341087224,1730361066383,-539.7472081,0.00050684,30]
[341087225,1730361066392,-500.0,0.00050684,120]
[341087226,1730361066402,-587.19219592,0.00050684,120]
[341087227,1730361066412,-500.0,0.00050684,120]
[341087228,1730361066421,-500.0,0.00050684,120]
[341087229,1730361066431,-476.63422522,0.00050684,120]
[341087230,1730361066440,-500.0,0.00050684,120]
[341087231,1730361066449,-535.61961014,0.00050684,120]
[341087232,1730361066458,-500.0,0.00050684,120]
[341087233,1730361066467,-500.0,0.00050684,120]
[341087234,1730361066476,-491.58885999,0.00050684,120]
[341087235,1730361066485,-500.0,0.00050684,120]
[341087236,1730361066496,-383.39975626,0.00050684,120]
[341087237,1730361066505,-500.0,0.00050684,120]
[341087238,1730361066516,-500.0,0.00050684,120]
[341087239,1730361066525,-600.31465841,0.00050684,120]
[341087240,1730361066534,-500.0,0.00050684,120]
[341087241,1730361066544,-641.52,0.00050684,120]
[341087242,1730361066554,-520.00052574,0.00050684,120]
[341087243,1730361066563,-500.0,0.00050684,120]
[341087244,1730361066573,-637.57,0.00050684,120]
[341087245,1730361066582,-537.79758829,0.00050684,120]
[341087246,1730361066592,-500.0,0.00050684,120]
[341087247,1730361066601,-510.50837479,0.00050684,120]
[341087248,1730361066611,-500.0,0.00050684,120]
[341087249,1730361066620,-500.0,0.00050684,120]
[341087250,1730361066629,-500.0,0.00050684,120]
[341087251,1730361066638,-500.0,0.00050684,120]
[341087252,1730361066648,-500.0,0.00050684,120]
[341087253,1730361066657,-571.98637387,0.00050684,120]
[341087254,1730361066667,-272.75445621,0.00050684,120]
[341087255,1730361066677,-500.0,0.00050684,120]
[341087256,1730361066686,-500.0,0.00050684,120]
[341087257,1730361066695,-500.0,0.00050684,120]
[341087258,1730361066705,-500.0,0.00050684,120]
[341087259,1730361066714,-611.65747555,0.00050684,120]
[341087260,1730361066724,-500.0,0.00050684,120]
[341087261,1730361066733,-228.8228688,0.00050684,120]
[341087262,1730361066743,-500.0,0.00050684,120]
[341087263,1730361066752,-515.06002577,0.00050684,120]
[341087264,1730361066761,-500.0,0.00050684,120]
[341087265,1730361066771,-500.0,0.00050684,120]
[341087266,1730361066780,-500.0,0.00050684,120]
[341087267,1730361066789,-500.0,0.00050684,120]
[341087268,1730361066799,-500.0,0.00050684,120]
[341087269,1730361066810,-229.90763581,0.00050684,120]
[341087270,1730361066820,-548.28384172,0.00050684,120]
[341087271,1730361066831,-569.61749373,0.00050684,120]
[341087272,1730361066841,-500.0,0.00050684,120]
[341087273,1730361066850,-503.88947674,0.00050684,120]
[341087274,1730361066860,-500.0,0.00050684,120]
[341087275,1730361066870,-500.0,0.00050684,120]
[341087276,1730361066879,-162.50668049,0.00050684,120]
[341087277,1730361066983,-500.0,0.00050684,120]
[341087278,1730361066993,-500.0,0.00050684,120]
[341087279,1730361067002,-592.78287435,0.00050684,120]
[341087280,1730361067012,-500.0,0.00050684,120]
[341087281,1730361067022,-194.00735121,0.00050684,120]
[341087282,1730361067032,-516.66667145,0.00050684,120]
[341087283,1730361067041,-500.0,0.00050684,120]
[341087284,1730361067050,-500.0,0.00050684,120]
[341087285,1730361067060,-500.0,0.00050684,120]
[341087286,1730361067070,-500.0,0.00050684,120]
[341087287,1730361067080,-372.37289526,0.00050684,120]
[341087288,1730361067089,-500.0,0.00050684,120]
[341087289,1730361067103,-364.37386184,0.00050684,120]
[341087290,1730361067113,-560.53222573,0.00050684,60]
[341087291,1730361067123,-509.04314174,0.00050684,120]
[341087292,1730361067132,-500.0,0.00050684,120]
[341087293,1730361067142,-511.51625544,0.00050684,120]
[341087294,1730361067152,-500.0,0.00050684,120]
[341087295,1730361067161,-500.0,0.00050684,120]
[341087296,1730361067171,-488.44085101,0.00050684,120]
[341087297,1730361067181,-500.0,0.00050684,120]
[341087298,1730361067190,-514.32191367,0.00050684,120]
[341087299,1730361067200,-500.0,0.00050684,120]
[341087300,1730361067210,-500.0,0.00050684,120]
[341087301,1730361067219,-255.95022724,0.00050684,120]
[341087302,1730361067229,-500.0,0.00050684,120]
[341087303,1730361067239,-535.88005163,0.00050684,120]
[341087304,1730361067248,-512.32859764,0.00050684,120]
[341087305,1730361067259,-500.0,0.00050684,120]
[341087306,1730361067269,-546.92891896,0.00050684,120]
[341087307,1730361067278,-500.0,0.00050684,120]
[341087308,1730361067288,-500.0,0.00050684,120]
[341087309,1730361067297,-500.0,0.00050684,120]
[341087310,1730361067307,-500.0,0.00050684,120]
[341087311,1730361067317,-545.05254583,0.00050684,120]
[341087312,1730361067327,-500.0,0.00050684,120]
[341087313,1730361067337,-500.0,0.00050684,120]
[341087314,1730361067347,-572.19153531,0.00050684,120]
[341087315,1730361067357,-504.64830075,0.00050684,120]
[341087316,1730361067367,-423.38111347,0.00050684,120]
[341087317,1730361067378,-500.0,0.00050684,120]
[341087318,1730361067388,-500.0,0.00050684,120]
[341087319,1730361067398,-500.0,0.00050684,120]
[341087320,1730361067408,-500.0,0.00050684,120]
[341087321,1730361067418,-500.0,0.00050684,120]
[341087322,1730361067428,-582.57497098,0.00050684,120]
[341087323,1730361067437,-2000.0,0.00050684,120]
[341087324,1730361067448,-500.0,0.00050684,120]
[341087325,1730361067458,-515.19717404,0.00050684,120]
[341087326,1730361067468,-2000.0,0.00050684,120]
[341087327,1730361067478,-500.0,0.00050684,120]
[341087328,1730361067487,-2000.0,0.00050684,120]
[341087329,1730361067497,-500.0,0.00050684,120]
[341087330,1730361067507,-500.0,0.00050684,120]
[341087331,1730361067517,-500.0,0.00050684,120]
[341087332,1730361067527,-2000.0,0.00050684,120]
[341087333,1730361067536,-500.0,0.00050684,120]
[341087334,1730361067546,-507.13354622,0.00050684,120]
[341087335,1730361067555,-2000.0,0.00050684,120]
[341087336,1730361067565,-500.0,0.00050684,120]
[341087337,1730361067575,-2000.0,0.00050684,120]
[341087338,1730361067585,-510.85126884,0.00050684,120]
[341087339,1730361067595,-300.60909724,0.00050684,120]
[341087340,1730361067604,-2000.0,0.00050684,120]
[341087341,1730361067614,-2000.0,0.00050684,120]
[341087342,1730361067624,-2000.0,0.00050684,120]
[341087343,1730361067634,-2000.0,0.00050684,120]
[341087344,1730361067644,-2000.0,0.00050684,120]
[341087345,1730361067654,-2000.0,0.00050684,120]
[341087346,1730361067664,-1393.29,0.00050684,120]
[341087347,1730361067674,-500.0,0.00050684,120]
[341087348,1730361067684,-500.0,0.00050684,120]
[341087349,1730361067693,-500.0,0.00050684,120]
[341087350,1730361067702,-544.11275441,0.00050684,120]
[341087351,1730361067712,-520.52297096,0.00050684,120]
[341087352,1730361067721,-504.32448934,0.00050684,120]
[341087353,1730361067731,-500.0,0.00050684,120]
[341087354,1730361067743,-588.67475081,0.00050684,120]
[341087355,1730361067753,-500.0,0.00050684,120]
[341087356,1730361067763,-150.06672131,0.00050684,120]
[341087357,1730361067772,-500.0,0.00050684,120]
[341087358,1730361067783,-505.12999105,0.00050684,120]
[341087359,1730361067794,-256.72,0.00050684,120]
[341087360,1730361067804,-525.96946909,0.00050684,120]
[341087361,1730361067814,-500.0,0.00050684,120]
[341087362,1730361067824,-500.0,0.00050684,120]
[341087363,1730361067834,-500.0,0.00050684,120]
[341087364,1730361067844,-483.15491919,0.00050684,120]
[341087365,1730361067854,-620.99424244,0.00050684,120]
[341087366,1730361067864,-500.0,0.00050684,120]
[341087367,1730361067874,-500.0,0.00050684,120]
[341087368,1730361067883,-619.14374597,0.00050684,120]
[341087369,1730361067892,-500.0,0.00050684,120]
[341087370,1730361067902,-522.10053042,0.00050684,120]
[341087371,1730361067912,-540.48094828,0.00050684,120]
[341087372,1730361067922,-500.0,0.00050684,120]
[341087373,1730361067932,-261.99,0.00050684,120]
[341087374,1730361067942,-500.0,0.00050684,120]
[341087375,1730361067951,-541.6943194,0.00050684,120]
[341087376,1730361067961,-506.14160501,0.00050684,120]
[341087377,1730361067971,-500.0,0.00050684,120]
[341087378,1730361067981,-544.05000498,0.00050684,120]
[341087379,1730361067990,-500.0,0.00050684,120]
[341087380,1730361067999,-500.0,0.00050684,120]
[341087381,1730361068011,-627.44323415,0.00050684,120]
[341087382,1730361068020,-500.0,0.00050684,120]
[341087383,1730361068029,-500.0,0.00050684,120]
[341087384,1730361068038,-500.0,0.00050684,120]
[341087385,1730361068048,-500.0,0.00050684,120]
[341087386,1730361068057,-500.0,0.00050684,120]
[341087387,1730361068066,-503.83855534,0.00050684,120]
[341087388,1730361068076,-510.14284326,0.00050684,120]
[341087389,1730361068085,-500.0,0.00050684,120]
[341087390,1730361068097,-500.78504598,0.00050684,120]
[341087391,1730361068106,-509.2452202,0.00050684,120]
[341087392,1730361068116,-500.0,0.00050684,120]
[341087393,1730361068125,-512.33376844,0.00050684,120]
[341087394,1730361068135,-500.0,0.00050684,120]
[341087395,1730361068144,-532.77348787,0.00050684,120]
[341087396,1730361068154,-500.0,0.00050684,120]
[341087397,1730361068163,-500.0,0.00050684,120]
[341087398,1730361068174,-500.0,0.00050684,120]
[341087399,1730361068184,-500.0,0.00050684,120]
[341087400,1730361068194,-500.0,0.00050684,120]
[341087401,1730361068203,-507.63986117,0.00050684,120]
[341087402,1730361068213,-530.08054724,0.00050684,120]
[341087403,1730361068222,-500.0,0.00050684,120]
[341087404,1730361068232,-388.88,0.00050684,120]
[341087405,1730361068242,-544.82413042,0.00050684,120]
[341087406,1730361068252,-543.91542841,0.00050684,120]
[341087407,1730361068262,-500.0,0.00050684,120]
[341087408,1730361068272,-517.21967355,0.00050684,120]
[341087409,1730361068281,-235.322752,0.00050684,120]
[341087410,1730361068291,-500.0,0.00050684,120]
[341087411,1730361068300,-514.8280702,0.00050684,120]
[341087412,1730361068310,-530.35114022,0.00050684,120]
[341087413,1730361068319,-550.62387705,0.00050684,120]
[341087414,1730361068328,-505.23439661,0.00050684,120]
[341087415,1730361068339,-508.81472163,0.00050684,120]
[341087416,1730361068348,-500.0,0.00050684,120]
[341087417,1730361068357,-500.0,0.00050684,120]
[341087418,1730361068368,-500.0,0.00050684,120]
[341087419,1730361068377,-621.55485048,0.00050684,120]
[341087420,1730361068387,-520.72900424,0.00050684,120]
[341087421,1730361068397,-227.67176349,0.00050684,120]
[341087422,1730361068406,-500.0,0.00050684,120]
[341087423,1730361068416,-500.0,0.00050684,120]
[341087424,1730361068426,-569.28608328,0.00050684,120]
[341087425,1730361068435,-420.96105419,0.00050684,120]
[341087426,1730361068445,-1682.6,0.00050684,2]
[341087427,1730361068455,-1682.6,0.00050684,2]
[341087428,1730361068464,-1682.6,0.00050684,2]
[341087429,1730361068474,-1682.6,0.00050684,2]
[341087430,1730361068483,-1682.6,0.00050684,2]
[341087431,1730361068494,-516.87141317,0.00050684,120]
[341087432,1730361068503,-538.25756116,0.00050684,120]
[341087433,1730361068514,-427.81296782,0.00050684,120]
[341087434,1730361068523,-1682.6,0.00050684,2]
[341087435,1730361068533,-1682.6,0.00050684,2]
[341087436,1730361068543,-1682.6,0.00050684,2]
[341087437,1730361068552,-1682.6,0.00050684,2]
[341087438,1730361068562,-507.57171705,0.00050684,120]
[341087439,1730361068571,-1682.6,0.00050684,2]
[341087440,1730361068580,-500.0,0.00050684,120]
[341087441,1730361068590,-1682.6,0.00050684,2]
[341087442,1730361068599,-500.0,0.00050684,120]
[341087443,1730361068609,-1682.6,0.00050684,2]
[341087444,1730361068619,-500.0,0.00050684,120]
[341087445,1730361068628,-1682.6,0.00050684,2]
[341087446,1730361068638,-507.49136355,0.00050684,120]
[341087447,1730361068648,-166.97564917,0.00050684,120]
[341087448,1730361068658,-1682.6,0.00050684,2]
[341087449,1730361068669,-505.21865381,0.00050684,30]
[341087450,1730361068679,-1682.6,0.00050684,2]
[341087451,1730361068689,-1682.6,0.00050684,2]
[341087452,1730361068699,-1682.6,0.00050684,2]
[341087453,1730361068709,-1682.6,0.00050684,2]
[341087454,1730361068719,-511.29455188,0.00050684,120]
[341087455,1730361068729,-1682.6,0.00050684,2]
[341087456,1730361068738,-1682.6,0.00050684,2]
[341087457,1730361068749,-1682.6,0.00050684,2]
[341087458,1730361068759,-1682.6,0.00050684,2]
[341087459,1730361068769,-1682.6,0.00050684,2]
[341087460,1730361068779,-1682.64194181,0.00050684,2]
[341087461,1730361068789,-572.67987278,0.00050684,120]
[341087462,1730361068799,-500.0,0.00050684,120]
[341087463,1730361068808,-196.78361183,0.00050684,120]
[341087464,1730361068818,-500.0,0.00050684,120]
[341087465,1730361068828,-599.92564775,0.00050684,120]
[341087466,1730361068837,-371.34301115,0.00050684,120]
[341087467,1730361068847,-512.04699105,0.00050684,120]
[341087468,1730361068856,-608.5891162,0.00050684,120]
[341087469,1730361068865,-150.0,0.00050684,120]
[341087470,1730361068874,-532.01152893,0.00050684,120]
[341087471,1730361068884,-150.0,0.00050684,120]
[341087472,1730361068893,-150.0,0.00050684,120]
[341087473,1730361068902,-150.0,0.00050684,120]
[341087474,1730361068911,-500.0,0.00050684,120]
[341087475,1730361068920,-150.0,0.00050684,120]
[341087476,1730361068929,-500.0,0.00050684,120]
[341087477,1730361068938,-161.48,0.00050684,120]
[341087478,1730361068948,-500.0,0.00050684,120]
[341087479,1730361068957,-500.0,0.00050684,120]
[341087480,1730361068969,-520.37414802,0.00050684,120]
[341087481,1730361068978,-567.0665651,0.00050684,120]
[341087482,1730361068987,-535.60229325,0.00050684,120]
[341087483,1730361068997,-542.18989273,0.00050684,120]
[341087484,1730361069007,-517.00958376,0.00050684,120]
[341087485,1730361069017,-500.0,0.00050684,120]
[341087486,1730361069026,-500.0,0.00050684,120]
[341087487,1730361069035,-500.0,0.00050684,120]
[341087488,1730361069044,-500.0,0.00050684,120]
[341087489,1730361069054,-500.0,0.00050684,120]
[341087490,1730361069063,-323.11130941,0.00050684,120]
[341087491,1730361069073,-500.0,0.00050684,120]
[341087492,1730361069082,-554.75729453,0.00050684,120]
[341087493,1730361069093,-500.0,0.00050684,120]
[341087494,1730361069104,-164.3543609,0.00050684,120]
[341087495,1730361069114,-528.86756182,0.00050684,120]
[341087496,1730361069123,-1868.37,0.00050684,120]
[341087497,1730361069133,-1868.37,0.00050684,120]
[341087498,1730361069142,-1868.37,0.00050684,120]
[341087499,1730361069151,-1868.37,0.00050684,120]
[341087500,1730361069160,-1868.37,0.00050684,120]
[341087501,1730361069263,-500.0,0.00050684,120]
[341087502,1730361069273,-1868.37,0.00050684,120]
[341087503,1730361069282,-1868.37,0.00050684,120]
[341087504,1730361069291,-500.0,0.00050684,120]
[341087505,1730361069300,-530.45,0.00050684,120]
[341087506,1730361069309,-500.0,0.00050684,120]
[341087507,1730361069318,-500.0,0.00050684,120]
[341087508,1730361069327,-500.0,0.00050684,120]
[341087509,1730361069337,-500.0,0.00050684,120]
[341087510,1730361069347,-1868.37,0.00050684,120]
[341087511,1730361069356,-500.0,0.00050684,120]
[341087512,1730361069365,-500.0,0.00050684,120]
[341087513,1730361069374,-1868.37,0.00050684,120]
[341087514,1730361069383,-500.0,0.00050684,120]
[341087515,1730361069393,-600.36275039,0.00050684,120]
[341087516,1730361069403,-1868.37,0.00050684,120]
[341087517,1730361069412,-500.0,0.00050684,120]
[341087518,1730361069422,-1868.37,0.00050684,120]
[341087519,1730361069431,-500.0,0.00050684,120]
[341087520,1730361069441,-1868.37,0.00050684,120]
[341087521,1730361069451,-500.0,0.00050684,120]
[341087522,1730361069461,-1868.37,0.00050684,120]
[341087523,1730361069470,-500.0,0.00050684,120]
[341087524,1730361069479,-500.0,0.00050684,120]
[341087525,1730361069488,-1868.37,0.00050684,120]
[341087526,1730361069497,-500.0,0.00050684,120]
[341087527,1730361069507,-1868.37,0.00050684,120]
[341087528,1730361069516,-484.67188265,0.00050684,120]
[341087529,1730361069526,-1868.37,0.00050684,120]
[341087530,1730361069535,-1868.37,0.00050684,120]
[341087531,1730361069545,-1868.37,0.00050684,120]
[341087532,1730361069554,-500.0,0.00050684,120]
[341087533,1730361069564,-1868.37,0.00050684,120]
[341087534,1730361069573,-447.95663467,0.00050684,120]
[341087535,1730361069582,-1868.37,0.00050684,120]
[341087536,1730361069591,-1868.37,0.00050684,120]
[341087537,1730361069601,-1868.37,0.00050684,120]
[341087538,1730361069610,-1868.37,0.00050684,120]
[341087539,1730361069619,-1868.37,0.00050684,120]
[341087540,1730361069629,-1031.21,0.00050684,120]
[341087541,1730361069639,-1031.21,0.00050684,120]
[341087542,1730361069649,-1031.21,0.00050684,120]
[341087543,1730361069659,-1031.21,0.00050684,120]
[341087544,1730361069668,-1031.21,0.00050684,120]
[341087545,1730361069678,-1031.21,0.00050684,120]
[341087546,1730361069687,-1031.21,0.00050684,120]
[341087547,1730361069697,-1031.21,0.00050684,120]
[341087548,1730361069706,-1031.21,0.00050684,120]
[341087549,1730361069716,-564.40974879,0.00050684,120]
[341087550,1730361069725,-1031.21,0.00050684,120]
[341087551,1730361069735,-1031.21,0.00050684,120]
[341087552,1730361069745,-1031.21,0.00050684,120]
[341087553,1730361069755,-1031.21,0.00050684,120]
[341087554,1730361069766,-500.0,0.00050684,120]
[341087555,1730361069776,-1031.21,0.00050684,120]
[341087556,1730361069785,-500.0,0.00050684,120]
[341087557,1730361069794,-1031.21,0.00050684,120]
[341087558,1730361069803,-500.0,0.00050684,120]
[341087559,1730361069812,-1031.21,0.00050684,120]
[341087560,1730361069821,-500.0,0.00050684,120]
[341087561,1730361069831,-500.0,0.00050684,120]
[341087562,1730361069839,-1031.21,0.00050684,120]
[341087563,1730361069848,-500.0,0.00050684,120]
[341087564,1730361069858,-487.16244222,0.00050684,120]
[341087565,1730361069867,-1031.21,0.00050684,120]
[341087566,1730361069876,-500.0,0.00050684,120]
[341087567,1730361069885,-500.0,0.00050684,120]
[341087568,1730361069894,-1031.21,0.00050684,120]
[341087569,1730361069903,-500.0,0.00050684,120]
[341087570,1730361069912,-500.0,0.00050684,120]
[341087571,1730361069921,-1031.21,0.00050684,120]
[341087572,1730361069931,-500.0,0.00050684,120]
[341087573,1730361069940,-500.0,0.00050684,120]
[341087574,1730361069949,-1031.21,0.00050684,120]
[341087575,1730361069959,-500.0,0.00050684,120]
[341087576,1730361069968,-362.0989973,0.00050684,120]
[341087577,1730361069977,-1031.21,0.00050684,120]
[341087578,1730361069986,-609.74410442,0.00050684,120]
[341087579,1730361069995,-500.0,0.00050684,120]
[341087580,1730361070005,-1031.21,0.00050684,120]
[341087581,1730361070015,-500.0,0.00050684,120]
[341087582,1730361070024,-1031.27856552,0.00050684,120]
[341087583,1730361070033,-500.0,0.00050684,120]
[341087584,1730361070043,-158.28761832,0.00050684,120]
[341087585,1730361070052,-540.40026593,0.00050684,120]
[341087586,1730361070062,-255.84135596,0.00050684,120]
[341087587,1730361070071,-515.06219258,0.00050684,120]
[341087588,1730361070080,-500.0,0.00050684,120]
[341087589,1730361070089,-500.0,0.00050684,120]
[341087590,1730361070102,-241.23,0.00050684,120]
[341087591,1730361070111,-500.0,0.00050684,120]
[341087592,1730361070121,-527.75745787,0.00050684,120]
[341087593,1730361070130,-511.3000555,0.00050684,120]
[341087594,1730361070140,-500.0,0.00050684,120]
[341087595,1730361070150,-500.0,0.00050684,120]
[341087596,1730361070160,-500.0,0.00050684,120]
[341087597,1730361070171,-324.66759994,0.00050684,120]
[341087598,1730361070185,-500.0,0.00050684,120]
[341087599,1730361070196,-500.0,0.00050684,120]
[341087600,1730361070206,-500.0,0.00050684,120]
[341087601,1730361070216,-558.26430617,0.00050684,120]
[341087602,1730361070225,-500.0,0.00050684,120]
[341087603,1730361070235,-500.0,0.00050684,120]
[341087604,1730361070245,-556.06729173,0.00050684,120]
[341087605,1730361070255,-514.65903806,0.00050684,120]
[341087606,1730361070267,-500.0,0.00050684,120]
[341087607,1730361070277,-500.89916086,0.00050684,120]
[341087608,1730361070287,-500.0,0.00050684,120]
[341087609,1730361070296,-500.0,0.00050684,120]
[341087610,1730361070306,-500.0,0.00050684,120]
[341087611,1730361070317,-500.0,0.00050684,120]
[341087612,1730361070327,-580.27600439,0.00050684,120]
[341087613,1730361070336,-500.0,0.00050684,120]
[341087614,1730361070346,-500.0,0.00050684,120]
[341087615,1730361070355,-267.47183189,0.00050684,120]
[341087616,1730361070364,-500.0,0.00050684,120]
[341087617,1730361070373,-500.0,0.00050684,120]
[341087618,1730361070382,-500.0,0.00050684,120]
[341087619,1730361070393,-599.46194511,0.00050684,120]
[341087620,1730361070403,-613.85,0.00050684,120]
[341087621,1730361070413,-613.85,0.00050684,120]
[341087622,1730361070423,-613.85,0.00050684,120]
[341087623,1730361070433,-500.0,0.00050684,120]
[341087624,1730361070442,-512.00694851,0.00050684,120]
[341087625,1730361070451,-500.0,0.00050684,120]
[341087626,1730361070461,-613.85,0.00050684,120]
[341087627,1730361070471,-183.47555383,0.00050684,120]
[341087628,1730361070480,-613.85,0.00050684,120]
[341087629,1730361070492,-613.85,0.00050684,120]
[341087630,1730361070504,-613.85,0.00050684,120]
[341087631,1730361070514,-613.85,0.00050684,120]
[341087632,1730361070524,-500.0,0.00050684,120]
[341087633,1730361070533,-613.85,0.00050684,120]
[341087634,1730361070544,-500.0,0.00050684,120]
[341087635,1730361070554,-613.85,0.00050684,120]
[341087636,1730361070563,-524.6,0.00050684,120]
[341087637,1730361070573,-500.0,0.00050684,120]
[341087638,1730361070582,-613.85,0.00050684,120]
[341087639,1730361070591,-500.0,0.00050684,120]
[341087640,1730361070600,-498.12934014,0.00050684,120]
[341087641,1730361070610,-613.85,0.00050684,120]
[341087642,1730361070619,-566.95867009,0.00050684,120]
[341087643,1730361070629,-500.0,0.00050684,120]
[341087644,1730361070638,-613.85,0.00050684,120]
[341087645,1730361070649,-561.66399631,0.00050684,120]
[341087646,1730361070658,-613.85,0.00050684,120]
[341087647,1730361070668,-613.85,0.00050684,120]
[341087648,1730361070678,-506.45079913,0.00050684,120]
[341087649,1730361070688,-613.85,0.00050684,120]
[341087650,1730361070698,-613.85,0.00050684,120]
[341087651,1730361070707,-613.85,0.00050684,120]
[341087652,1730361070716,-500.0,0.00050684,120]
[341087653,1730361070725,-613.85,0.00050684,120]
[341087654,1730361070734,-547.82975259,0.00050684,120]
[341087655,1730361070743,-613.85,0.00050684,120]
[341087656,1730361070752,-506.72416836,0.00050684,120]
[341087657,1730361070762,-613.85,0.00050684,120]
[341087658,1730361070772,-613.85,0.00050684,120]
[341087659,1730361070780,-500.0,0.00050684,120]
[341087660,1730361070789,-613.85,0.00050684,120]
[341087661,1730361070798,-500.0,0.00050684,120]
[341087662,1730361070807,-500.0,0.00050684,120]
[341087663,1730361070816,-613.8698798,0.00050684,120]
[341087664,1730361070825,-500.0,0.00050684,120]
[341087665,1730361070835,-500.0,0.00050684,120]
[341087666,1730361070844,-547.59922369,0.00050684,120]
[341087667,1730361070853,-500.0,0.00050684,120]